Cogmind - Beta 11.1 @@@ ROGUE MODE // 2022.06.04 @ 05:52:06 Player: Exp. Geonium Core Result: Destroyed by YI-UF0 with YI-UF0's Doublenader Performance ------------- Evolutions (1) 500 Regions Visited (4) 800 Robots Destroyed (27) 135 Value Destroyed (780) 780 Prototype IDs (0) 0 Alien Tech Used (0) 0 Bonus (0) 0 TOTAL SCORE: 2215 Bonus ------- None Cogmind --------- Core Integrity 0/400 Matter 270/300 Energy 75/100 System Corruption 0% Temperature Cool (0) Movement Treading (240) Ox1 Location -9/Mines Parts ------- > --- POWER (1) -------- (None) > --- PROPULSION (2) --- Light Treads > --- UTILITY (4) ------ Large Storage Unit Improved Signal Interpreter > --- WEAPON (2) ------- Ripper > --- INVENTORY (15) --- Heavy Ion Engine Huge Storage Unit Light Armor Plating Light Armor Plating Light Armor Plating Assault Rifle Heavy Assault Rifle Heavy Assault Rifle Improved Assault Rifle Grenade Launcher Rocket Launcher Peak State ------------ > --- POWER ------------ (None) > --- PROPULSION ------- Light Treads Light Treads > --- UTILITY ---------- Large Storage Unit Structural Scanner Improved Signal Interpreter Targeting Computer > --- WEAPON ----------- Assault Rifle Ripper > --- INVENTORY -------- Heavy Ion Engine Light Treads Small Storage Unit Huge Storage Unit Light Armor Plating Assault Rifle Light Assault Rifle Light Assault Rifle Light Assault Rifle Light Assault Rifle Heavy Assault Rifle Improved Assault Rifle Grenade Launcher Rocket Launcher [Rating: 15] Favorites ----------- Power Light Ion Engine Engine Light Ion Engine Propulsion Light Treads Treads Light Treads Leg Aluminum Leg Utility Large Storage Unit Device Structural Scanner Storage Large Storage Unit Processor Improved Signal Interpreter Weapon Light Assault Rifle Energy Gun EM Pulse Gun Ballistic Gun Light Assault Rifle Launcher Rocket Launcher Slashing Weapon Ripper Build | -11 -10 -10 -9 -9 ------- Run | Scr Mat Min Mat Min Slots Evolved 2 | . . . 2 . Power . | . . . . . Propulsion . | . . . . . Utility 2 | . . . 2 . Weapon . | . . . . . Parts Attached 23 | 3 2 2 12 4 Power 1 | . . 1 . . Engine 1 | . . 1 . . Core . | . . . . . Reactor . | . . . . . Propulsion 8 | 2 . . 3 3 Treads 8 | 2 . . 3 3 Leg . | . . . . . Wheel . | . . . . . Hover . | . . . . . Flight . | . . . . . Utility 4 | . 2 . 2 . Device 1 | . 1 . . . Storage 1 | . 1 . . . Processor 2 | . . . 2 . Hackware . | . . . . . Protection . | . . . . . Artifact . | . . . . . Weapon 10 | 1 . 1 7 1 Energy Gun . | . . . . . Energy Cannon . | . . . . . Ballistic Gun 6 | 1 . . 5 . Ballistic Cannon . | . . . . . Launcher 2 | . . 1 1 . Special Weapon . | . . . . . Impact Weapon . | . . . . . Slashing Weapon 2 | . . . 1 1 Piercing Weapon . | . . . . . Special Melee Weapon . | . . . . . Unidentified Prototypes . | . . . . . Parts Lost 13 | . 2 . 4 7 Power 2 | . 1 . 1 . Propulsion 6 | . . . 2 4 Utility 2 | . . . . 2 Weapon 3 | . 1 . 1 1 Highest Loss Streak 5 | . 1 . 3 5 To Critical Strikes . | . . . . . Average Slot Usage (%) 82 | . 93 79 81 72 Engine 6 | . 8 8 4 . Treads 23 | . 28 28 18 18 Device 12 | . 14 14 11 7 Storage 12 | . 14 14 11 11 Processor 7 | . . . 16 18 Energy Gun 3 | . 13 . . . Ballistic Gun 13 | . 14 14 14 7 Slashing Weapon 2 | . . . 5 10 Naked Turns . | . . . . . Heaviest Build 28 | 11 27 25 28 26 Greatest Support 40 | 40 40 40 40 40 Greatest Overweight (x) 7 | . . . 7 1 Average Overweight (x) . | . . . . . Largest Inventory Capacity 15 | 8 15 15 15 15 Average Capacity 14 | 8 14 15 15 15 Most Carried 15 | 6 7 11 15 15 Average Carried 9 | 3 3 9 12 13 Final Capacity 15 | 8 15 15 15 15 Final Carried 14 | 1 7 11 14 11 Class Distribution -------------------- 100% | Mutant Dominant Class ---------------- Mutant | -10/Materials Mutant | -10/Mines Mutant | -9/Materials Mutant | -9/Mines Resources | -11 -10 -10 -9 -9 ----------- Run | Scr Mat Min Mat Min Matter Collected 496 | 192 75 42 187 . Remotely . | . . . . . Salvage Created 809 | . 415 27 343 24 Parts 60 | . 29 5 25 1 Haulers Intercepted . | . . . . . Recyclers Shooed . | . . . . . Parts Field Recycled . | . . . . . Retrieved Matter . | . . . . . Parts Self-Destructed . | . . . . . Prevented . | . . . . . Kills | -11 -10 -10 -9 -9 ------- Run | Scr Mat Min Mat Min Combat Hostiles Destroyed 26 | . 12 4 10 . Melee 3 | . . . 3 . Guns 14 | . 10 1 3 . AOE 9 | . 2 3 4 . Classes Destroyed 4 | . 2 . 1 1 Worker 1 | . . . . 1 Swarmer 8 | . 3 4 1 . Grunt 14 | . 9 . 5 . Sentry 4 | . . . 4 . Best Kill Streak 6 | . 6 3 5 1 Combat Bots Only 6 | . 6 3 5 . Max Kills in Single Turn 2 | . 2 2 2 1 Gunslinging . | . . . . . Exploded 2 | . 1 2 2 . Melee 1 | . . . 1 . Uniques/NPCs Destroyed . | . . . . . Combat | -11 -10 -10 -9 -9 -------- Run | Scr Mat Min Mat Min Damage Taken 1995 | . 417 62 831 685 Core 503 | . 83 10 202 208 Absorbed by Shields . | . . . . . Core Remaining (%) 81 | 100 . 62 . . Volleys Fired 46 | . 25 5 16 . Largest 2 | . 2 2 2 . Hottest 60 | . 60 53 40 . Shots Fired 78 | . 46 7 25 . Gun 73 | . 46 5 22 . Cannon . | . . . . . Launcher 5 | . . 2 3 . Special . | . . . . . Kinetic 52 | . 25 5 22 . Thermal . | . . . . . Explosive 5 | . . 2 3 . Electromagnetic 21 | . 21 . . . Robot Hit Streak 14 | . 14 4 5 . Robot Miss Streak 3 | . 2 1 3 . Penetration Max . | . . . . . Secondary Targets . | . . . . . Shots Hit Robots 69 | . 33 4 30 2 Core Hits 44 | . 17 4 22 1 Critical Kills . | . . . . . Critical Parts Destroyed . | . . . . . Critical Strikes 2 | . . . 2 . Sever 2 | . . . 2 . Melee Attacks 17 | . . . 14 3 Impact . | . . . . . Slashing 17 | . . . 14 3 Piercing . | . . . . . Sneak Attacks 2 | . . . 1 1 Combat Hostiles . | . . . . . Follow-up Attacks . | . . . . . Damage Inflicted 1881 | . 527 265 975 114 Guns 581 | . 364 26 191 . Cannons . | . . . . . Explosions 662 | . 163 228 271 . Melee 624 | . . . 510 114 Ramming 14 | . . 11 3 . Kinetic 359 | . 142 26 191 . Thermal 163 | . 163 . . . Explosive 499 | . . 228 271 . Electromagnetic 222 | . 222 . . . Impact . | . . . . . Slashing 624 | . . . 510 114 Piercing . | . . . . . Highest Corruption . | . . . . . Average Corruption . | . . . . . Corruption Purged . | . . . . . Corruption Blocked . | . . . . . Overload Shots . | . . . . . Overflow Damage 105 | . 45 . 27 33 Projectiles . | . . . . . Explosions 59 | . 45 . 14 . Melee 46 | . . . 13 33 Knockbacks . | . . . . . Impact . | . . . . . Kinetic . | . . . . . Secondary . | . . . . . Self-Inflicted Damage 173 | . 97 . 76 . Shots 5 | . 3 . 2 . Rammed 4 | . . 3 1 . Targets Rammed 4 | . . 3 1 . Kicked . | . . . . . Crushed . | . . . . . Highest Temperature 64 | . 64 4 18 . Average Temperature 23 | . 27 2 8 . Received Heat Transfer 429 | . 138 . 264 27 Siege Activations . | . . . . . Robots Corrupted . | . . . . . Combat Hostiles . | . . . . . Parts Fried . | . . . . . Impact Corruptions . | . . . . . Robots Melted . | . . . . . Combat Hostiles . | . . . . . Parts Melted . | . . . . . Heat Transferred 350 | . 350 . . . Parts Sabotaged . | . . . . . Parts Stolen . | . . . . . Parts Stripped . | . . . . . Power Chain Reactions 3 | . 3 . . . Missiles Intercepted . | . . . . . Alert | -11 -10 -10 -9 -9 ------- Run | Scr Mat Min Mat Min Peak Influence 369 | . 369 202 342 48 Initial 81 | . . 81 12 43 Average 131 | . 200 69 167 29 Maximum Alert Level 1 | . 1 1 1 . Low Security (%) 71 | 100 52 82 66 100 Level 1 28 | . 47 17 33 . Level 2 . | . . . . . Level 3 . | . . . . . Level 4 . | . . . . . Level 5 . | . . . . . High Security . | . . . . . Max Security . | . . . . . Squads Dispatched 7 | . 5 . 2 . Investigation 1 | . 1 . . . Extermination . | . . . . . Reinforcement 6 | . 4 . 2 . Assault . | . . . . . Garrison . | . . . . . Intercept . | . . . . . Searches Triggered . | . . . . . Construction Impeded . | . . . . . Haulers Reinforced . | . . . . . Active Scanning Responses . | . . . . . Cargo Convoy Interrupts . | . . . . . Stealth | -11 -10 -10 -9 -9 --------- Run | Scr Mat Min Mat Min Distress Signals 3 | . 1 . 2 . Communications Jammed . | . . . . . Distress Signals . | . . . . . Times Spotted 44 | . 16 5 19 4 Peak Tracking Total 6 | . 4 3 6 2 Tactical Retreats 3 | . . . 2 1 Traps | -11 -10 -10 -9 -9 ------- Run | Scr Mat Min Mat Min Traps Triggered . | . . . . . Indirectly . | . . . . . Trap Hack Attempts . | . . . . . Triggered . | . . . . . Disarmed . | . . . . . Reprogrammed . | . . . . . Reused . | . . . . . Traps Extracted . | . . . . . Installed . | . . . . . Triggered . | . . . . . Machines | -11 -10 -10 -9 -9 ---------- Run | Scr Mat Min Mat Min Machines Disabled 3 | . 1 1 1 . Max in Single Turn 1 | . 1 1 1 . Machines Sabotaged . | . . . . . Garrisons Compromised . | . . . . . Overloaded Fab Kills . | . . . . . Hacking | -11 -10 -10 -9 -9 --------- Run | Scr Mat Min Mat Min Machines Accessed 1 | . 1 . . . Terminals . | . . . . . Fabricators . | . . . . . Repair Stations . | . . . . . Recycling Units 1 | . 1 . . . Scanalyzers . | . . . . . Garrison Access . | . . . . . Total Hacks 4 | . 4 . . . Successful 1 | . 1 . . . Failed 3 | . 3 . . . Catastrophic . | . . . . . Database Lockouts . | . . . . . Manual 4 | . 4 . . . Terminals . | . . . . . Fabricators . | . . . . . Repair Stations . | . . . . . Recycling Units 4 | . 4 . . . Scanalyzers . | . . . . . Garrison Access . | . . . . . Terminal Hacks . | . . . . . Fabricator Hacks . | . . . . . Repair Station Hacks . | . . . . . Recycling Unit Hacks . | . . . . . Scanalyzer . | . . . . . Garrison Access Hacks . | . . . . . Unauthorized Hacks 1 | . 1 . . . Terminals . | . . . . . Fabricators . | . . . . . Repair Stations . | . . . . . Recycling Units 1 | . 1 . . . Tunnel 1 | . 1 . . . Scanalyzers . | . . . . . Garrison Access . | . . . . . Data Cores Recovered . | . . . . . Used . | . . . . . Hacking Detections 1 | . 1 . . . Full Trace Events . | . . . . . Feedback Events . | . . . . . Feedback Blocked . | . . . . . Robot Schematics Acquired . | . . . . . Robots Built . | . . . . . Authchips . | . . . . . Time . | . . . . . Total Robot Build Rating . | . . . . . Part Schematics Acquired . | . . . . . Parts Built . | . . . . . Authchips . | . . . . . Time . | . . . . . Total Part Build Rating . | . . . . . Parts Repaired . | . . . . . Time . | . . . . . Parts Recycled . | . . . . . Recycled Matter . | . . . . . Retrieved Matter . | . . . . . Retrieved Components . | . . . . . Parts Scanalyzed . | . . . . . Part Schematics Acquired . | . . . . . Parts Damaged . | . . . . . Bothacking | -11 -10 -10 -9 -9 ------------ Run | Scr Mat Min Mat Min Used RIF Installer . | . . . . . Robots Hacked . | . . . . . Non-combat . | . . . . . Combat . | . . . . . Robot Hacks Applied . | . . . . . Relay Couplers Released . | . . . . . Fabnet Peak Effective % . | . . . . . Robots Rewired . | . . . . . Allies Hacked . | . . . . . Hacks Repelled . | . . . . . Allies | -11 -10 -10 -9 -9 -------- Run | Scr Mat Min Mat Min Total Allies . | . . . . . Largest Group . | . . . . . Highest-Rated Group . | . . . . . Highest-Rated Ally . | . . . . . Total Orders . | . . . . . Ally Attacks . | . . . . . Total Damage . | . . . . . Kills . | . . . . . Allies Corrupted . | . . . . . Allies Melted . | . . . . . Intel | -11 -10 -10 -9 -9 ------- Run | Scr Mat Min Mat Min Robot Analysis Total . | . . . . . Derelict Logs Recovered 2 | . . 2 . . Drone Launches . | . . . . . Drone Recoveries . | . . . . . Exploration | -11 -10 -10 -9 -9 ------------- Run | Scr Mat Min Mat Min Turns Passed 2281 | 6 516 759 834 166 Spaces Moved 1201 | 1 269 459 397 75 Core 4 | . . . 4 . Treads 1197 | 1 269 459 393 75 Legs . | . . . . . Wheels . | . . . . . Hover . | . . . . . Flight . | . . . . . Fastest Speed 160 | 160 160 160 160 160 Average Speed 166 | 160 160 160 176 170 Slowest Speed 400 | 160 160 160 400 240 Overloaded Moves . | . . . . . Propulsion Burnouts . | . . . . . Robots Hopped . | . . . . . Cave-ins Triggered . | . . . . . Exploration Rate (%) 46 | 2 57 96 48 28 Regions Visited 4 Branch Regions 2 Pre-discovered Areas 3 | . 1 2 . . Known Exits Taken 1 | . . . 1 . Unknown Exits Taken 3 | 1 1 1 . . Scrap Searched 1 | . . 1 . . Spaces Dug . | . . . . . Terrain Destroyed 44 | . 11 15 18 . Melee . | . . . . . Projectile . | . . . . . AOE 44 | . 11 15 18 . Terrain Rammed . | . . . . . Walls Destroyed . | . . . . . Machines Disabled . | . . . . . Actions | -11 -10 -10 -9 -9 --------- Run | Scr Mat Min Mat Min Total 1390 | 8 313 476 483 110 Wait 67 | . 13 2 25 27 Move 1197 | . 268 458 396 75 Hop . | . . . . . Pick Up 21 | . 5 5 11 . Fast Attach 6 | . 1 . 5 . Attach 10 | 2 . 2 2 4 Detach 2 | . . 1 . 1 Swap 7 | 1 1 . 5 . Drop 13 | 5 . . 8 . Fire 46 | . 25 5 16 . Melee 17 | . . . 14 3 Ram . | . . . . . Kick . | . . . . . Crush 4 | . . 3 1 . Escape Stasis . | . . . . . Rewire . | . . . . . Trap . | . . . . . Miscellaneous . | . . . . . Route ------- -11/Scrapyard -10/Materials (discovered 2 exits: *Mat / [*Min]) -10/Mines (discovered 2 exits: *Mat x2) -9/Materials (discovered 3 exits: [*Mat x2] / *Min) -9/Mines (discovered 2 exits: [*Mat x2]) History --------- Turn | Location | Event 7 | -11/Scrapyard | Discovered new exit (range 0) 7 | -11/Scrapyard | Entered Materials 303 | -10/Materials | Build established: Mutant 416 | -10/Materials | Discovered new exit (range 6) 468 | -10/Materials | Discovered new exit (range 16) 523 | -10/Materials | Entered Mines 524 | -10/Mines | Learned location of Storage (-8) 588 | -10/Mines | Met a Derelict bent on vengeance 644 | -10/Mines | Received a Rocket Launcher from a helpful Derelict 777 | -10/Mines | Discovered new exit (range 11) 917 | -10/Mines | A weapon hastily lodged in a ceiling crevice suddenly fell to the ground 1054 | -10/Mines | Learned Materials trap positions 1197 | -10/Mines | Learned location of Zion (-7) 1198 | -10/Mines | Discovered new exit (range 5) 1282 | -10/Mines | Entered Materials 1282 | -9/Materials | Evolved 2 slots: Utility x2 1283 | -9/Materials | Loaded intel: 10 trap records 1430 | -9/Materials | Discovered new exit (range 16) 1489 | -9/Materials | Discovered new exit (range 7) 1518 | -9/Materials | Identified exit to Mines 1660 | -9/Materials | Lost 3 parts (1p1n1w) 1677 | -9/Materials | Discovered new exit (range 10) 1871 | -9/Materials | Core integrity fell below 50% 2116 | -9/Materials | Entered Mines 2144 | -9/Mines | Discovered new exit (range 11) 2193 | -9/Mines | Discovered new exit (range 9) 2254 | -9/Mines | Lost 5 parts (2n2u1w) 2274 | -9/Mines | Core integrity fell below 20% 2282 | -9/Mines | Destroyed by YI-UF0 with YI-UF0's Doublenader Last Messages --------------- 02234_ The unstable cave ceiling collapses. 02243_ YI-UF0: "KABOOM!" 02243_ R-06 Scavenger destroyed. 02249_ The unstable cave ceiling collapses. 02252_ U-05 Engineer destroyed. 02253_ The unstable cave ceiling collapses. 02258_ U-05 Engineer lays Concrete. 02259_ Pressure Siphon disabled. 02259_ R-06 Scavenger destroyed. 02263_ YI-UF0: "KABOOM!" 02263_ U-05 Engineer destroyed. 02264_ The unstable cave ceiling collapses. 02265_ R-06 Scavenger destroyed. 02273_ The unstable cave ceiling collapses. 02273_ Lgt. Treads destroyed. 02274_ YI-UF0 mumbles something. 02275_ Destroyed Shock Absorption System. 02279_ The unstable cave ceiling collapses. 02280_ Lgt. Treads destroyed. 02281_ The unstable cave ceiling collapses. Map ----- +----------------------------------------------------+ | ??????????????## ## ###? | | ??????????????## [! ### ######? | | ??????????????### ## * #########?? | | ??????????????#### ###### ######????? | | ???????????????### ####### ###????????? | | ????????????????## ########* ####????????? | | ????????????????## ###########?????????? | | ???????????????### #?#########???????? | | ??????????????#### ##???#######??????? | | ???????????###### % ####### ###??????? | | ???????????##### #### ###?????? | | ???????????## < # ###?????? | | ???????????## ##?????? | | ???????????## ##?????? | | ???????????## r ###?????? | | ???????????### ####?????? | | ???????????#### % ####??????? | | ????????????#### = ###???????? | | ?????????????### # #####????????? | | ??????????????### *= ####????????? | | ??????????????### * #???????????? | | ???????????????### ##???????????? | | ????????????????### ##??????????? | | ????????????????#### # #??????????? | | ?????????????????### ##??????????? | | ??????????????????## @ #???????????? | | ??????????????????## g #???????????? | | ??????????????????## ##???????????? | | ??????????????????## = ##???????????? | | ?????????????????### % ##????????????? | | ????????????????## ####????????????? | | ???????????????? %! ## ????????????? | | ????????????????# ??????????????? | | ?????????????? % %r ?????????????? | | ????????## < ##????????? | | ????????## ###????????? | | ????????### # #####????????? | | ????????### ### ##########?????????? | | ?????????## ## ? ###???????????? | | ?????????# ?? ## ##?????????????????? | | ?????????? ??? ### # ##?????????????????? | | ????????????????###### ##?????????????????? | | ?????????????????#####$##?????????????????? | | ?????????????????????? ##?????????????????? | | ?????????????????????? ##?????????????????? | | ?????????????????????? ##?????????????????? | | ?????????????????????? ???????????????????? | | ??????????????????????????????????????????? | | ??????????????????????????????????????????? | | ??????????????????????????????????????????? | +----------------------------------------------------+ Best States ------------- Heat Dissipation 28 Energy Generation 10 Energy Capacity 125 Matter Stores 300 Matter Capacity 300 Sight Range 16 Terrain Scan Density 10 Evasion (%) 40 Targeting Accuracy 5 Recoil Reduction 2 Item Schematics ----------------- None Robot Schematics ------------------ None Fabricated ------------ Nothing Alien Tech Used ----------------- None Achievements -------------- None Challenges ------------ None Game ------ Seed BombSwordRigger Manual? 0 Play Time 00:15:10 Cumulative 204.6 hours Start 2022.06.04 @ 05:33:43 End 2022.06.04 @ 05:52:06 Sessions 1 Manual Loads 0 Difficulty Rogue Special Mode None Game No. 269 Rogue 269 Adventurer 0 Explorer 0 Win Type - Total 10 Types 8/0/1/1/0/0/0/0/0 Lore% 60 Gallery% 81 Achievement% 71 Wizard Run 0 Options --------- ASCII 0 Keyboard 0 Movement Numpad Keybinds 0 Fullscreen 1 Font 18/Terminus Map View 76x50 Tactical HUD 1 Map Filters NONE Filters NONE Steam 1 RUN: e69ce568-5ffd-4390-8376-e6a2d02a5550